fUST/lending_fUST_20250517
["ID","MTS","AMOUNT","RATE_DAILY","PERIOD"]
[361339161,1747489846678,-450.0,0.0001452,2]
[361339163,1747489846687,-450.0,0.0001452,2]
[361339165,1747489846696,-151.0,0.0001452,2]
[361339167,1747489846705,-151.0,0.0001452,2]
[361339169,1747489846715,-2431.420396,0.0001452,2]
[361339171,1747489846724,-450.0,0.0001452,2]
[361339173,1747489846733,-151.0,0.0001452,2]
[361339175,1747489846742,-2431.420396,0.0001452,2]
[361339177,1747489846752,-1314.08,0.0001452,2]
[361339179,1747489846761,-450.0,0.0001452,2]
[361339181,1747489846770,-151.0,0.0001452,2]
[361339183,1747489846780,-744.73,0.0001452,2]
[361339185,1747489846790,-450.0,0.0001452,2]
[361339187,1747489846799,-450.0,0.0001452,2]
[361339189,1747489846809,-450.0,0.0001452,2]
[361339191,1747489846819,-151.0,0.0001452,2]
[361339193,1747489846828,-450.0,0.0001452,2]
[361339195,1747489846838,-151.0,0.0001452,2]
[361339197,1747489846847,-450.0,0.0001452,2]
[361339199,1747489846857,-450.0,0.0001452,2]
[361339201,1747489846866,-836.2,0.0001452,2]
[361339203,1747489846875,-471.38336,0.0001452,2]
[361339205,1747489846884,-471.38336,0.0001452,2]
[361339207,1747489846893,-151.0,0.0001452,2]
[361339209,1747489846902,-713.08628094,0.00014557,2]
[361339211,1747489846911,-541.82,0.00014621,2]
[361339213,1747489846920,-541.82,0.00014621,2]
[361339215,1747489846930,-276.615755,0.00014622,2]
[361339217,1747489846939,-276.615755,0.00014622,2]
[361339219,1747489846948,-151.0,0.00014622,2]
[361339221,1747489846957,-151.0,0.00014622,2]
[361339223,1747489846967,-151.0,0.00014622,2]
[361339225,1747489846975,-151.0,0.00014622,2]
[361339227,1747489846984,-412.008283,0.00014622,2]
[361339229,1747489846996,-624.471708,0.00014622,2]
[361339231,1747489847005,-624.471708,0.00014622,2]
[361339233,1747489847014,-412.008283,0.00014622,2]
[361339235,1747489847023,-220.491178,0.00014622,2]
[361339237,1747489847032,-220.491178,0.00014622,2]
[361339239,1747489847043,-262.026294,0.00014622,2]
[361339241,1747489847051,-151.0,0.00014622,2]
[361339243,1747489847060,-151.0,0.00014622,2]
[361339245,1747489847070,-151.0,0.00014622,2]
[361339246,1747489847083,-151.0,0.00014622,2]
[361339248,1747489847092,-151.0,0.00014622,2]
[361339250,1747489847102,-151.0,0.00014622,2]
[361339252,1747489847114,-151.0,0.00014622,2]
[361339254,1747489847123,-151.0,0.00014622,2]
[361339256,1747489847133,-199.679701,0.00014622,2]
[361339258,1747489847143,-153.46045,0.00014622,2]
[361339260,1747489847152,-153.46045,0.00014622,2]
[361339262,1747489847161,-253.80693,0.00014622,2]
[361339264,1747489847170,-253.80693,0.00014622,2]
[361339266,1747489847180,-151.0,0.00014622,2]
[361339268,1747489847190,-151.0,0.00014622,2]
[361339270,1747489847200,-179.157862,0.00014622,2]
[361339273,1747489847210,-179.157862,0.00014622,2]
[361339275,1747489847220,-151.861578,0.00014622,2]
[361339276,1747489847229,-151.0,0.00014622,2]
[361339278,1747489847238,-151.0,0.00014622,2]
[361339280,1747489847248,-5000.0,0.00014622,2]
[361339282,1747489847257,-5000.0,0.00014622,2]
[361339285,1747489847267,-151.0,0.00014656,2]
[361339287,1747489847276,-151.833104,0.00014656,2]
[361339289,1747489847286,-219.934243,0.00014656,2]
[361339290,1747489847295,-219.934243,0.00014656,2]
[361339293,1747489847304,-6519.274302,0.00014656,2]
[361339294,1747489847314,-6519.274302,0.00014656,2]
[361339296,1747489847323,-541.82,0.00014656,2]
[361339299,1747489847332,-151.0,0.00014656,2]
[361339300,1747489847341,-151.0,0.00014656,2]
[361339303,1747489847350,-151.0,0.00014656,2]
[361339305,1747489847359,-471.38336,0.00014656,2]
[361339307,1747489847368,-471.38336,0.00014656,2]
[361339309,1747489847378,-151.0,0.00014657,2]
[361339310,1747489847388,-151.0,0.00014657,2]
[361339312,1747489847397,-151.0,0.00014657,2]
[361339315,1747489847406,-151.0,0.00014657,2]
[361339317,1747489847416,-151.0,0.00014657,2]
[361339318,1747489847425,-196.982207,0.00014657,2]
[361339321,1747489847435,-151.0,0.00014657,2]
[361339323,1747489847444,-164.199467,0.00014657,2]
[361339325,1747489847453,-164.199467,0.00014657,2]
[361339326,1747489847463,-151.0,0.00014657,2]
[361339329,1747489847473,-232.968047,0.00014657,2]
[361339331,1747489847482,-232.968047,0.00014657,2]
[361339333,1747489847493,-151.0,0.00014657,2]
[361339335,1747489847502,-151.0,0.00014657,2]
[361339337,1747489847511,-450.0,0.00014657,2]
[361339339,1747489847521,-450.0,0.00014657,2]
[361339341,1747489847530,-151.0,0.00014657,2]
[361339343,1747489847539,-172.688586,0.00014657,2]
[361339345,1747489847548,-151.0,0.00014657,2]
[361339347,1747489847558,-450.0,0.00014657,2]
[361339348,1747489847566,-208.09526,0.00014657,2]
[361339350,1747489847576,-208.09526,0.00014657,2]
[361339351,1747489847585,-450.0,0.00014657,2]
[361339352,1747489847595,-450.0,0.00014657,2]
[361339353,1747489847605,-151.0,0.00014657,2]
[361339354,1747489847614,-154.619579,0.00014657,2]
[361339355,1747489847623,-2431.420396,0.00014657,2]
[361339356,1747489847633,-450.0,0.00014657,2]
[361339357,1747489847642,-2431.420396,0.00014657,2]
[361339358,1747489847652,-1314.08,0.00014657,2]
[361339359,1747489847661,-450.0,0.00014657,2]
[361339360,1747489847671,-744.73,0.00014657,2]
[361339361,1747489847680,-450.0,0.00014657,2]
[361339362,1747489847689,-450.0,0.00014657,2]
[361339363,1747489847699,-450.0,0.00014657,2]
[361339364,1747489847709,-450.0,0.00014657,2]
[361339365,1747489847719,-514.94098135,0.00014657,2]
[361339366,1747489847729,-450.0,0.00014657,2]
[361339367,1747489847740,-836.2,0.00014657,2]
[361339368,1747489847750,-541.82,0.00014699,2]
[361339369,1747489847760,-541.82,0.00014699,2]
[361339370,1747489847769,-541.82,0.00014699,2]
[361339371,1747489847779,-541.82,0.00014699,2]
[361339372,1747489847788,-40000.0,0.000147,2]
[361339373,1747489847798,-151.0,0.000147,2]
[361339374,1747489847807,-159.373338,0.000147,2]
[361339375,1747489847817,-151.0,0.000147,2]
[361339376,1747489847826,-151.0,0.000147,2]
[361339377,1747489847835,-151.0,0.000147,2]
[361339378,1747489847844,-151.0,0.000147,2]
[361339379,1747489847854,-152.613938,0.000147,2]
[361339380,1747489847863,-152.613938,0.000147,2]
[361339381,1747489847993,-151.0,0.000147,2]
[361339382,1747489848004,-239.539251,0.000147,2]
[361339383,1747489848014,-151.0,0.000147,2]
[361339384,1747489848023,-276.615755,0.000147,2]
[361339385,1747489848032,-276.615755,0.000147,2]
[361339386,1747489848042,-151.0,0.000147,2]
[361339387,1747489848051,-151.0,0.000147,2]
[361339388,1747489848060,-151.0,0.000147,2]
[361339389,1747489848069,-151.0,0.000147,2]
[361339390,1747489848079,-412.008283,0.000147,2]
[361339391,1747489848090,-624.471708,0.000147,2]
[361339392,1747489848099,-624.471708,0.000147,2]
[361339393,1747489848109,-412.008283,0.000147,2]
[361339394,1747489848118,-220.491178,0.000147,2]
[361339395,1747489848128,-220.491178,0.000147,2]
[361339396,1747489848137,-151.0,0.000147,2]
[361339397,1747489848147,-151.0,0.000147,2]
[361339398,1747489848156,-151.0,0.000147,2]
[361339399,1747489848166,-151.0,0.000147,2]
[361339400,1747489848175,-151.0,0.000147,2]
[361339401,1747489848184,-151.0,0.000147,2]
[361339402,1747489848193,-151.0,0.000147,2]
[361339403,1747489848203,-151.0,0.000147,2]
[361339404,1747489848212,-151.0,0.000147,2]
[361339405,1747489848221,-151.0,0.000147,2]
[361339406,1747489848230,-151.0,0.000147,2]
[361339407,1747489848239,-153.46045,0.000147,2]
[361339408,1747489848248,-153.46045,0.000147,2]
[361339409,1747489848257,-196.982207,0.000147,2]
[361339410,1747489848267,-151.0,0.000147,2]
[361339411,1747489848276,-253.80693,0.000147,2]
[361339412,1747489848286,-253.80693,0.000147,2]
[361339413,1747489848295,-164.199467,0.000147,2]
[361339414,1747489848305,-164.199467,0.000147,2]
[361339415,1747489848314,-190.294385,0.000147,2]
[361339416,1747489848323,-151.0,0.000147,2]
[361339417,1747489848333,-232.968047,0.000147,2]
[361339418,1747489848343,-232.968047,0.000147,2]
[361339419,1747489848352,-219.934243,0.000147,2]
[361339420,1747489848362,-183.693443,0.000147,2]
[361339421,1747489848372,-219.934243,0.000147,2]
[361339422,1747489848382,-151.0,0.000147,2]
[361339423,1747489848392,-6519.274302,0.000147,2]
[361339424,1747489848402,-6519.274302,0.000147,2]
[361339425,1747489848411,-151.0,0.000147,2]
[361339426,1747489848421,-151.0,0.000147,2]
[361339427,1747489848431,-151.0,0.000147,2]
[361339428,1747489848441,-208.09526,0.000147,2]
[361339429,1747489848450,-208.09526,0.000147,2]
[361339430,1747489848460,-151.0,0.000147,2]
[361339431,1747489848469,-151.0,0.000147,2]
[361339432,1747489848479,-151.0,0.000147,2]
[361339433,1747489848489,-179.157862,0.000147,2]
[361339434,1747489848499,-179.157862,0.000147,2]
[361339435,1747489848508,-2431.420396,0.000147,2]
[361339436,1747489848518,-151.0,0.000147,2]
[361339437,1747489848528,-2431.420396,0.000147,2]
[361339438,1747489848538,-151.0,0.000147,2]
[361339439,1747489848548,-151.0,0.000147,2]
[361339440,1747489848558,-471.38336,0.000147,2]
[361339441,1747489848567,-471.38336,0.000147,2]
[361339442,1747489848577,-151.0,0.000147,2]
[361339443,1747489848587,-713.08628094,0.00014763,2]
[361339444,1747489848596,-541.82,0.00014793,2]
[361339445,1747489848606,-276.615755,0.00014794,2]
[361339446,1747489848615,-276.615755,0.00014794,2]
[361339447,1747489848624,-151.0,0.00014794,2]
[361339448,1747489848633,-151.0,0.00014794,2]
[361339449,1747489848643,-151.0,0.00014794,2]
[361339450,1747489848652,-151.0,0.00014794,2]
[361339451,1747489848662,-151.0,0.00014794,2]
[361339452,1747489848671,-151.0,0.00014794,2]
[361339453,1747489848680,-151.0,0.00014794,2]
[361339454,1747489848690,-196.982207,0.00014794,2]
[361339455,1747489848699,-152.924956,0.00014794,2]
[361339456,1747489848709,-164.199467,0.00014794,2]
[361339457,1747489848718,-164.199467,0.00014794,2]
[361339458,1747489848727,-151.0,0.00014794,2]
[361339459,1747489848736,-232.968047,0.00014794,2]
[361339460,1747489848746,-232.968047,0.00014794,2]
[361339461,1747489848755,-219.934243,0.00014794,2]
[361339462,1747489848764,-219.934243,0.00014794,2]
[361339463,1747489848773,-260.886494,0.00014794,2]
[361339464,1747489848782,-6519.274302,0.00014794,2]
[361339465,1747489848792,-6519.274302,0.00014794,2]
[361339466,1747489848801,-337.92241107,0.00014794,2]
[361339467,1747489848811,-450.0,0.00014794,2]
[361339468,1747489848819,-151.0,0.00014794,2]
[361339469,1747489848829,-151.0,0.00014794,2]
[361339470,1747489848838,-450.0,0.00014794,2]
[361339471,1747489848847,-208.09526,0.00014794,2]
[361339472,1747489848857,-208.09526,0.00014794,2]
[361339473,1747489848866,-151.0,0.00014794,2]
[361339474,1747489848875,-450.0,0.00014794,2]
[361339475,1747489848885,-450.0,0.00014794,2]
[361339476,1747489848895,-151.0,0.00014794,2]
[361339477,1747489848905,-2431.420396,0.00014794,2]
[361339478,1747489848915,-450.0,0.00014794,2]
[361339479,1747489848924,-151.0,0.00014794,2]
[361339480,1747489848934,-1314.08,0.00014794,2]
[361339481,1747489848944,-2431.420396,0.00014794,2]
[361339482,1747489848954,-450.0,0.00014794,2]
[361339483,1747489848963,-151.0,0.00014794,2]
[361339484,1747489848973,-744.73,0.00014794,2]
[361339485,1747489848982,-450.0,0.00014794,2]
[361339486,1747489848992,-450.0,0.00014794,2]
[361339487,1747489849004,-450.0,0.00014794,2]
[361339488,1747489849013,-450.0,0.00014794,2]
[361339489,1747489849023,-151.0,0.00014794,2]
[361339490,1747489849032,-450.0,0.00014794,2]
[361339491,1747489849043,-836.2,0.00014794,2]
[361339492,1747489849052,-471.38336,0.00014794,2]
[361339493,1747489849061,-471.38336,0.00014794,2]
[361339494,1747489849072,-151.0,0.00014794,2]
[361339495,1747489849081,-265426.91010961,0.00014888,2]
[361339496,1747489849126,-4068.21443825,0.00014888,2]
[361339497,1747489849138,-968.47356697,0.00014888,2]
[361339498,1747490019610,151.0,0.00027397,120]
[361339499,1747490049193,152.0,0.00027397,120]
[361339501,1747490788346,1095.0,0.000273,120]
[361339552,1747491032705,-215.25677807,0.0001369,2]
[361339555,1747491032714,-99.39474093,0.0001369,2]
[361339573,1747491038542,-51.60525907,0.0001369,2]
[361339574,1747491038551,-151.0,0.0001369,2]
[361339575,1747491038561,-207.4,0.0001369,2]
[361339576,1747491038571,-300.0,0.00013697,2]
[361339577,1747491038581,-54.99474093,0.00013697,2]
[361339969,1747491043715,-1145.00525907,0.00013697,2]
[361339971,1747491043725,-300.0,0.00013697,2]
[361339973,1747491043735,-450.0,0.00013698,2]
[361339975,1747491043745,-450.0,0.00013698,2]
[361339977,1747491043754,-450.0,0.00013698,2]
[361339979,1747491043764,-450.0,0.00013698,2]
[361339981,1747491043775,-450.0,0.00013698,2]
[361339984,1747491043785,-450.0,0.00013698,2]
[361339987,1747491043794,-450.0,0.00013698,2]
[361339989,1747491043804,-450.0,0.00013698,2]
[361339992,1747491043812,-450.0,0.00013698,2]
[361339995,1747491043822,-450.0,0.00013698,2]
[361339998,1747491043836,-450.0,0.00013698,2]
[361340001,1747491043846,-450.0,0.00013698,2]
[361340005,1747491043856,-450.0,0.00013698,2]
[361340008,1747491043866,-846.92,0.00013698,2]
[361340009,1747491043875,-450.0,0.00013698,2]
[361340011,1747491043885,-450.0,0.00013698,2]
[361340014,1747491043894,-450.0,0.00013698,2]
[361340016,1747491043903,-450.0,0.00013698,2]
[361340018,1747491043912,-450.0,0.00013698,2]
[361340020,1747491043922,-541.38,0.00013698,2]
[361340022,1747491043932,-450.0,0.00013698,2]
[361340024,1747491043941,-450.0,0.00013698,2]
[361340026,1747491043950,-188.63499,0.00013699,2]
[361340028,1747491043959,-270.446956,0.00013699,2]
[361340030,1747491043968,-245.88758902,0.00013745,2]
[361340032,1747491043978,-450.0,0.00013835,2]
[361340034,1747491043987,-450.0,0.00013835,2]
[361340036,1747491043996,-450.0,0.00013835,2]
[361340038,1747491044005,-450.0,0.00013835,2]
[361340040,1747491044015,-450.0,0.00013835,2]
[361340041,1747491044024,-450.0,0.00013835,2]
[361340043,1747491044033,-450.0,0.00013835,2]
[361340045,1747491044042,-846.92,0.00013835,2]
[361340047,1747491044051,-450.0,0.00013835,2]
[361340049,1747491044060,-450.0,0.00013835,2]
[361340051,1747491044070,-450.0,0.00013835,2]
[361340052,1747491044082,-450.0,0.00013835,2]
[361340053,1747491044091,-541.38,0.00013835,2]
[361340054,1747491044100,-450.0,0.00013835,2]
[361340055,1747491044109,-450.0,0.00013835,2]
[361340056,1747491044118,-500.0,0.00013969,2]
[361340057,1747491044127,-450.0,0.00013972,2]
[361340058,1747491044136,-450.0,0.00013972,2]
[361340059,1747491044145,-450.0,0.00013972,2]
[361340060,1747491044154,-450.0,0.00013972,2]
[361340061,1747491044163,-450.0,0.00013972,2]
[361340062,1747491044172,-450.0,0.00013972,2]
[361340063,1747491044181,-450.0,0.00013972,2]
[361340064,1747491044190,-846.92,0.00013972,2]
[361340065,1747491044199,-450.0,0.00013972,2]
[361340066,1747491044208,-450.0,0.00013972,2]
[361340067,1747491044217,-450.0,0.00013972,2]
[361340068,1747491044226,-450.0,0.00013972,2]
[361340069,1747491044235,-541.38,0.00013972,2]
[361340070,1747491044244,-450.0,0.00013972,2]
[361340071,1747491044254,-450.0,0.00013972,2]
[361340072,1747491044263,-586.95676214,0.00014009,2]
[361340073,1747491044272,-450.0,0.00014109,2]
[361340074,1747491044281,-450.0,0.00014109,2]
[361340075,1747491044290,-450.0,0.00014109,2]
[361340076,1747491044299,-450.0,0.00014109,2]
[361340077,1747491044308,-450.0,0.00014109,2]
[361340078,1747491044317,-450.0,0.00014109,2]
[361340079,1747491044327,-450.0,0.00014109,2]
[361340081,1747491044335,-846.92,0.00014109,2]
[361340083,1747491044345,-450.0,0.00014109,2]
[361340085,1747491044354,-232.65366419,0.00014109,2]
[361340087,1747491044363,-450.0,0.00014109,2]
[361340089,1747491044372,-450.0,0.00014109,2]
[361340091,1747491044381,-541.38,0.00014109,2]
[361340093,1747491044390,-450.0,0.00014109,2]
[361340095,1747491044400,-450.0,0.00014109,2]
[361340097,1747491044409,-160.0,0.0001416,2]
[361340099,1747491044418,-998.40506679,0.0001416,2]
[361340101,1747491044428,-160.0,0.0001416,2]
[361340103,1747491044437,-212.29844686,0.0001416,2]
[361340105,1747491044447,-500.0,0.00014245,2]
[361340107,1747491044457,-500.0,0.00014245,2]
[361340109,1747491044467,-262.21470523,0.00014245,2]
[361340111,1747491044476,-500.0,0.00014245,2]
[361340113,1747491044485,-500.0,0.00014245,2]
[361340115,1747491044497,-449.03887333,0.00014245,2]
[361340117,1747491044506,-500.0,0.00014245,2]
[361340119,1747491044516,-450.0,0.00014246,2]
[361340121,1747491044525,-450.0,0.00014246,2]
[361340123,1747491044535,-450.0,0.00014246,2]
[361340125,1747491044544,-450.0,0.00014246,2]
[361340127,1747491044554,-450.0,0.00014246,2]
[361340129,1747491044563,-450.0,0.00014246,2]
[361340131,1747491044573,-450.0,0.00014246,2]
[361340133,1747491044584,-846.92,0.00014246,2]
[361340135,1747491044593,-450.0,0.00014246,2]
[361340137,1747491044604,-450.0,0.00014246,2]
[361340139,1747491044615,-450.0,0.00014246,2]
[361340141,1747491044625,-541.38,0.00014246,2]
[361340143,1747491044635,-450.0,0.00014246,2]
[361340145,1747491044646,-309.35570035,0.00014246,2]
[361340147,1747491044657,-450.0,0.00014383,2]
[361340149,1747491044666,-459.83,0.00014383,2]
[361340151,1747491044676,-450.0,0.00014383,2]
[361340153,1747491044687,-450.0,0.00014383,2]
[361340156,1747491044707,-846.92,0.00014383,2]
[361340158,1747491044718,-450.0,0.00014383,2]
[361340160,1747491044728,-450.0,0.00014383,2]
[361340162,1747491044738,-450.0,0.00014383,2]
[361340164,1747491044748,-541.38,0.00014383,2]
[361340166,1747491044758,-450.0,0.00014383,2]
[361340168,1747491044768,-151.0,0.000145,2]
[361340170,1747491044778,-151.0,0.0001452,2]
[361340173,1747491044788,-450.0,0.0001452,2]
[361340175,1747491044798,-450.0,0.0001452,2]
[361340177,1747491044808,-474.22,0.0001452,2]
[361340179,1747491044819,-846.92,0.0001452,2]
[361340181,1747491044832,-450.0,0.0001452,2]
[361340183,1747491044844,-450.0,0.0001452,2]
[361340185,1747491044854,-450.0,0.0001452,2]
[361340187,1747491044864,-541.38,0.0001452,2]
[361340189,1747491044874,-545.05,0.0001452,2]
[361340191,1747491044884,-151.0,0.00014656,2]
[361340193,1747491044893,-500.0,0.00014656,2]
[361340195,1747491044903,-450.0,0.00014657,2]
[361340197,1747491044913,-450.0,0.00014657,2]
[361340199,1747491044923,-846.92,0.00014657,2]
[361340201,1747491044932,-450.0,0.00014657,2]
[361340203,1747491044942,-450.0,0.00014657,2]
[361340205,1747491044952,-450.0,0.00014657,2]
[361340207,1747491044962,-541.38,0.00014657,2]
[361340209,1747491044972,-652.61296533,0.00014684,2]
[361340211,1747491044982,-151.0,0.000147,2]
[361340213,1747491044992,-151.0,0.00014794,2]
[361340215,1747491045001,-450.0,0.00014794,2]
[361340217,1747491045010,-450.0,0.00014794,2]
[361340219,1747491045020,-846.92,0.00014794,2]
[361340221,1747491045030,-450.0,0.00014794,2]
[361340223,1747491045040,-450.0,0.00014794,2]
[361340225,1747491045049,-450.0,0.00014794,2]
[361340227,1747491045059,-541.38,0.00014794,2]
[361340229,1747491045069,-35387.70766943,0.00014888,2]
[361340231,1747491045080,-170.56,0.00014888,2]
[361340233,1747491045090,-170.56,0.00014888,2]
[361340235,1747491045100,-170.56,0.00014888,2]
[361340237,1747491045109,-170.56,0.00014888,2]
[361340239,1747491045119,-170.56,0.00014888,2]
[361340241,1747491045128,-170.61778953,0.00014888,2]
[361340243,1747491045139,-151.0,0.00014888,2]
[361340245,1747491045148,-5000.000001,0.000149,2]
[361340247,1747491045158,-2331.34048862,0.000149,2]
[361340249,1747491045167,-500.0,0.0001493,2]
[361340251,1747491045177,-429.64,0.00014931,2]
[361340253,1747491045187,-450.0,0.00014931,2]
[361340255,1747491045197,-846.92,0.00014931,2]
[361340257,1747491045207,-450.0,0.00014931,2]
[361340259,1747491045216,-450.0,0.00014931,2]
[361340261,1747491045226,-450.0,0.00014931,2]
[361340263,1747491045235,-541.38,0.00014931,2]
[361340265,1747491045245,-420.0,0.0001501,2]
[361340267,1747491045256,-420.0,0.0001501,2]
[361340270,1747491045266,-151.45521363,0.00015059,2]
[361340272,1747491045275,-215.0738,0.00015059,2]
[361340274,1747491045285,-151.0,0.00015066,2]
[361340276,1747491045294,-245.028508,0.00015066,2]
[361340278,1747491045303,-151.0,0.00015066,2]
[361340280,1747491045313,-480.0,0.00015067,2]
[361340282,1747491045323,-151.0,0.00015068,2]
[361340284,1747491045334,-450.0,0.00015068,2]
[361340286,1747491045344,-846.92,0.00015068,2]
[361340288,1747491045353,-450.0,0.00015068,2]
[361340290,1747491045363,-450.0,0.00015068,2]
[361340292,1747491045373,-541.38,0.00015068,2]
[361340294,1747491045384,-151.0,0.00015196,2]
[361340296,1747491045393,-295.062561,0.00015196,2]
[361340298,1747491045402,-636.0,0.000152,2]
[361340300,1747491045412,-173.1960359,0.00015205,2]
[361340302,1747491045422,-846.92,0.00015205,2]
[361340304,1747491045431,-450.0,0.00015205,2]
[361340306,1747491045441,-450.0,0.00015205,2]
[361340308,1747491045450,-541.38,0.00015205,2]
[361340310,1747491045459,-323.2360812,0.0001526,2]
[361340312,1747491045468,-2331.34048855,0.00015279,2]
[361340314,1747491045478,-178.27157025,0.00015287,2]
[361340316,1747491045487,-600.0,0.000153,3]
[361340318,1747491045496,-846.92,0.00015342,2]
[361340320,1747491045506,-450.0,0.00015342,2]
[361340322,1747491045515,-450.0,0.00015342,2]
[361340324,1747491045525,-541.38,0.00015342,2]
[361340326,1747491045534,-1000.0,0.00015383,5]
[361340328,1747491045544,-500.0,0.00015387,2]
[361340330,1747491045553,-500.0,0.00015388,2]
[361340332,1747491045563,-2237.0,0.0001542,2]
[361340334,1747491045572,-404.0,0.0001542,2]
[361340336,1747491045583,-500.0,0.00015473,2]
[361340338,1747491045593,-357.20569932,0.00015473,2]
[361340340,1747491045605,-151.0,0.00015479,2]
[361340342,1747491045615,-177.320892,0.00015479,2]
[361340344,1747491045624,-846.92,0.00015479,2]
[361340346,1747491045635,-450.0,0.00015479,2]
[361340348,1747491045644,-450.0,0.00015479,2]
[361340350,1747491045654,-541.38,0.00015479,2]
[361340352,1747491045664,-421.21637007,0.00015538,2]
[361340354,1747491045673,-500.0,0.00015571,2]
[361340356,1747491045682,-846.92,0.00015616,2]
[361340358,1747491045691,-216.3,0.00015616,2]
[361340360,1747491045701,-217.22,0.00015616,2]
[361340362,1747491045710,-541.38,0.00015616,2]
[361340364,1747491045720,-2331.34048855,0.00015659,2]
[361340366,1747491045730,-586.9567621,0.00015684,2]
[361340368,1747491045740,-500.0,0.00015706,2]
[361340370,1747491045750,-846.92,0.00015753,2]
[361340372,1747491045759,-541.38,0.00015753,2]
[361340374,1747491045772,-500.82642928,0.0001586,2]
[361340376,1747491045782,-500.0,0.00015889,2]
[361340378,1747491045791,-846.92,0.0001589,2]
[361340380,1747491045802,-541.38,0.0001589,2]
[361340382,1747491045813,-3000.0,0.00016,2]
[361340384,1747491045822,-4623.359254,0.0001601,2]
[361340386,1747491045832,-536.73376109,0.00016021,2]
[361340388,1747491045842,-500.0,0.00016026,2]
[361340390,1747491045851,-501.01371699,0.00016026,2]
[361340392,1747491045861,-500.0,0.00016026,2]
[361340394,1747491045871,-500.0,0.00016026,2]
[361340396,1747491045881,-846.92,0.00016027,2]
[361340398,1747491045891,-541.38,0.00016027,2]
[361340401,1747491045900,-2331.34048855,0.00016038,2]
[361340402,1747491045910,-177.30579549,0.00016038,2]
[361340405,1747491045920,-150.951,0.00016038,2]
[361340407,1747491045930,-500.0,0.00016067,2]
[361340409,1747491045939,-251.14,0.00016099,2]
[361340411,1747491045949,-7294.29169974,0.000161,2]
[361340413,1747491045959,-500.0,0.00016115,2]
[361340415,1747491045969,-178.27157023,0.00016158,2]
[361340417,1747491045978,-846.92,0.00016164,2]
[361340419,1747491045987,-541.38,0.00016164,2]
[361340421,1747491045997,-151.0,0.00016254,2]
[361340423,1747491046007,-151.0,0.00016254,2]
[361340425,1747491046017,-151.0,0.00016254,2]
[361340427,1747491046026,-151.0,0.00016254,2]
[361340429,1747491046035,-151.0,0.00016254,2]
[361340431,1747491046045,-151.0,0.00016254,2]
[361340433,1747491046056,-151.0,0.00016254,2]
[361340435,1747491046066,-151.0,0.00016254,2]
[361340437,1747491046075,-504.14894185,0.00016254,2]
[361340439,1747491046084,-730.0,0.000163,4]
[361340441,1747491046094,-846.92,0.00016301,2]
[361340443,1747491046104,-541.38,0.00016301,2]
[361340445,1747491046114,-194.0,0.000164,4]